[Event "Titled Tuesday Blitz July 4 Late 2023"]
[White "Zampronha, Wladimir Camilo"]
[Black "Campos, Maria Jose"]
[WhiteFideId "2103087"]
[BlackFideId "146803"]
[WhiteElo "2283"]
[BlackElo "2378"]
[Result "1-0"]
[Round "7"]
[TimeControl "180+2"]
[Date "2023.07.04"]
[WhiteClock "0:00:11"]
[BlackClock "0:00:29"]
[Board "119"]

1. e4 {[%clk 0:03:00]}  e5 {[%clk 0:02:59]} 2. Nf3 {[%clk 0:03:01]}  Nc6 {[%clk 0:03:00]} 3. d4 {[%clk 0:03:01]}  exd4 {[%clk 0:03:00]} 4. Nxd4 {[%clk 0:03:02]}  Bc5 {[%clk 0:03:00]} 5. Be3 {[%clk 0:03:02]}  Qf6 {[%clk 0:03:00]} 6. c3 {[%clk 0:03:02]}  Nge7 {[%clk 0:02:59]} 7. Bc4 {[%clk 0:03:02]}  Bb6 {[%clk 0:02:59]} 8. O-O {[%clk 0:03:01]}  O-O {[%clk 0:02:58]} 9. Na3 {[%clk 0:03:02]}  Ne5 {[%clk 0:02:57]} 10. Be2 {[%clk 0:03:00]}  d5 {[%clk 0:02:55]} 11. f4 {[%clk 0:02:58]}  N5c6 {[%clk 0:02:35]} 12. e5 {[%clk 0:02:57]}  Qg6 {[%clk 0:02:34]} 13. Nac2 {[%clk 0:02:58]}  f5 {[%clk 0:02:30]} 14. Nb5 {[%clk 0:02:49]}  Rd8 {[%clk 0:02:19]} 15. Bxb6 {[%clk 0:02:49]}  cxb6 {[%clk 0:02:20]} 16. Nbd4 {[%clk 0:02:41]}  Be6 {[%clk 0:02:19]} 17. Qe1 {[%clk 0:02:34]}  Nxd4 {[%clk 0:02:17]} 18. Nxd4 {[%clk 0:02:33]}  Nc6 {[%clk 0:02:18]} 19. Qd2 {[%clk 0:02:28]}  Qf7 {[%clk 0:02:14]} 20. Rf3 {[%clk 0:02:22]}  Rac8 {[%clk 0:02:14]} 21. Rff1 {[%clk 0:02:17]}  a6 {[%clk 0:02:13]} 22. Bf3 {[%clk 0:02:07]}  b5 {[%clk 0:02:11]} 23. Rfd1 {[%clk 0:02:02]}  Qe7 {[%clk 0:02:11]} 24. Qf2 {[%clk 0:02:00]}  g6 {[%clk 0:02:10]} 25. Rd2 {[%clk 0:01:59]}  Bf7 {[%clk 0:02:08]} 26. Rad1 {[%clk 0:01:54]}  Na5 {[%clk 0:02:07]} 27. Nb3 {[%clk 0:01:44]}  Nxb3 {[%clk 0:01:59]} 28. axb3 {[%clk 0:01:44]}  d4 {[%clk 0:01:49]} 29. Rxd4 {[%clk 0:01:40]}  Rxd4 {[%clk 0:01:49]} 30. Qxd4 {[%clk 0:01:39]}  Bxb3 {[%clk 0:01:50]} 31. Bd5+ {[%clk 0:01:39]}  Bxd5 {[%clk 0:01:48]} 32. Qxd5+ {[%clk 0:01:40]}  Kg7 {[%clk 0:01:48]} 33. h3 {[%clk 0:01:29]}  Rc7 {[%clk 0:01:45]} 34. Kh2 {[%clk 0:01:29]}  Kh6 {[%clk 0:01:45]} 35. Rd3 {[%clk 0:01:23]}  Qh4 {[%clk 0:01:42]} 36. g3 {[%clk 0:01:18]}  Qe7 {[%clk 0:01:42]} 37. Qd6 {[%clk 0:00:57]}  Kg7 {[%clk 0:01:37]} 38. Qxe7+ {[%clk 0:00:56]}  Rxe7 {[%clk 0:01:38]} 39. g4 {[%clk 0:00:57]}  Kf7 {[%clk 0:01:30]} 40. Kg3 {[%clk 0:00:57]}  Rc7 {[%clk 0:01:28]} 41. gxf5 {[%clk 0:00:56]}  gxf5 {[%clk 0:01:29]} 42. Rd6 {[%clk 0:00:56]}  Ke7 {[%clk 0:01:14]} 43. Rh6 {[%clk 0:00:52]}  Ke8 {[%clk 0:01:13]} 44. Rf6 {[%clk 0:00:49]}  Rg7+ {[%clk 0:01:08]} 45. Kf3 {[%clk 0:00:47]}  Rg1 {[%clk 0:01:08]} 46. Rxf5 {[%clk 0:00:46]}  Rb1 {[%clk 0:01:07]} 47. Rh5 {[%clk 0:00:46]}  Rxb2 {[%clk 0:01:07]} 48. Rxh7 {[%clk 0:00:45]}  b4 {[%clk 0:01:08]} 49. cxb4 {[%clk 0:00:45]}  Rxb4 {[%clk 0:01:06]} 50. f5 {[%clk 0:00:45]}  a5 {[%clk 0:01:07]} 51. f6 {[%clk 0:00:44]}  Rb6 {[%clk 0:01:02]} 52. Ke4 {[%clk 0:00:39]}  a4 {[%clk 0:01:02]} 53. Kf5 {[%clk 0:00:39]}  a3 {[%clk 0:01:03]} 54. e6 {[%clk 0:00:35]}  Kd8 {[%clk 0:00:54]} 55. Rh8+ {[%clk 0:00:24]}  Kc7 {[%clk 0:00:54]} 56. Ra8 {[%clk 0:00:18]}  Ra6 {[%clk 0:00:51]} 57. Rxa6 {[%clk 0:00:19]}  bxa6 {[%clk 0:00:51]} 58. f7 {[%clk 0:00:19]}  a2 {[%clk 0:00:52]} 59. f8=Q {[%clk 0:00:20]}  a1=Q {[%clk 0:00:52]} 60. Qf7+ {[%clk 0:00:18]}  Kb6 {[%clk 0:00:51]} 61. e7 {[%clk 0:00:17]}  Qf1+ {[%clk 0:00:51]} 62. Kg6 {[%clk 0:00:17]}  Qg2+ {[%clk 0:00:49]} 63. Kf6 {[%clk 0:00:17]}  Qf3+ {[%clk 0:00:47]} 64. Kg7 {[%clk 0:00:17]}  Qxh3 {[%clk 0:00:34]} 65. e8=Q {[%clk 0:00:15]}  a5 {[%clk 0:00:32]} 66. Qf6+ {[%clk 0:00:14]}  Kc5 {[%clk 0:00:32]} 67. Qee5+ {[%clk 0:00:15]}  Kc4 {[%clk 0:00:30]} 68. Qff4+ {[%clk 0:00:15]}  Kb3 {[%clk 0:00:30]} 69. Qee3+ {[%clk 0:00:14]}  Qxe3 {[%clk 0:00:29]} 70. Qxe3+ {[%clk 0:00:15]}  Kb4 {[%clk 0:00:27]} 71. Qd4+ {[%clk 0:00:15]}  Kb3 {[%clk 0:00:27]} 72. Qa1 {[%clk 0:00:13]}  a4 {[%clk 0:00:27]} 73. Kf6 {[%clk 0:00:14]}  a3 {[%clk 0:00:28]} 74. Ke5 {[%clk 0:00:15]}  a2 {[%clk 0:00:29]} 75. Kd4 {[%clk 0:00:13]}  Ka3 {[%clk 0:00:29]} 76. Kc4 {[%clk 0:00:10]}  Ka4 {[%clk 0:00:29]} 77. Qxa2# {[%clk 0:00:11]} 1-0


[Site "https://www.chess.com"]

[Event "Titled Tuesday Blitz July 4 Late 2023"]
[White "Duarte, Leonardo"]
[Black "Guimaraes, Wagner Peixoto"]
[WhiteFideId "110582"]
[BlackFideId "2100940"]
[WhiteElo "2376"]
[BlackElo "2267"]
[Result "1-0"]
[Round "7"]
[TimeControl "180+2"]
[Date "2023.07.04"]
[WhiteClock "0:00:11"]
[BlackClock "0:00:00"]
[Board "121"]

1. e4 {[%clk 0:03:00]}  c5 {[%clk 0:02:58]} 2. Nf3 {[%clk 0:03:01]}  e6 {[%clk 0:02:56]} 3. d4 {[%clk 0:03:01]}  cxd4 {[%clk 0:02:57]} 4. Nxd4 {[%clk 0:03:01]}  Nf6 {[%clk 0:02:54]} 5. Nc3 {[%clk 0:03:02]}  Nc6 {[%clk 0:02:54]} 6. Ndb5 {[%clk 0:03:01]}  Bb4 {[%clk 0:02:53]} 7. a3 {[%clk 0:03:01]}  Bxc3+ {[%clk 0:02:53]} 8. Nxc3 {[%clk 0:03:02]}  d5 {[%clk 0:02:54]} 9. exd5 {[%clk 0:02:56]}  exd5 {[%clk 0:02:54]} 10. Bd3 {[%clk 0:02:56]}  O-O {[%clk 0:02:53]} 11. O-O {[%clk 0:02:56]}  d4 {[%clk 0:02:54]} 12. Ne2 {[%clk 0:02:54]}  Bg4 {[%clk 0:02:54]} 13. h3 {[%clk 0:02:54]}  Bxe2 {[%clk 0:02:46]} 14. Qxe2 {[%clk 0:02:53]}  Re8 {[%clk 0:02:45]} 15. Qd1 {[%clk 0:02:47]}  h6 {[%clk 0:02:35]} 16. Bf4 {[%clk 0:02:45]}  Nd5 {[%clk 0:02:31]} 17. Bg3 {[%clk 0:02:37]}  Nf6 {[%clk 0:02:26]} 18. Re1 {[%clk 0:02:36]}  Qd5 {[%clk 0:02:22]} 19. Qd2 {[%clk 0:02:29]}  Ne5 {[%clk 0:02:04]} 20. Bf1 {[%clk 0:02:28]}  Ne4 {[%clk 0:01:49]} 21. Qf4 {[%clk 0:02:18]}  Ng6 {[%clk 0:01:45]} 22. Qf3 {[%clk 0:02:15]}  Qc6 {[%clk 0:01:19]} 23. Bh2 {[%clk 0:02:09]}  Ng5 {[%clk 0:01:06]} 24. Qxc6 {[%clk 0:02:06]}  bxc6 {[%clk 0:01:07]} 25. Ba6 {[%clk 0:02:01]}  c5 {[%clk 0:00:54]} 26. Bb5 {[%clk 0:01:35]}  Rxe1+ {[%clk 0:00:50]} 27. Rxe1 {[%clk 0:01:36]}  Ne6 {[%clk 0:00:45]} 28. Bd7 {[%clk 0:01:06]}  Ngf8 {[%clk 0:00:38]} 29. Bc6 {[%clk 0:01:04]}  Rc8 {[%clk 0:00:35]} 30. Bb7 {[%clk 0:01:02]}  Rd8 {[%clk 0:00:35]} 31. f4 {[%clk 0:00:56]}  c4 {[%clk 0:00:28]} 32. f5 {[%clk 0:00:54]}  Nc5 {[%clk 0:00:28]} 33. Bf3 {[%clk 0:00:51]}  d3 {[%clk 0:00:28]} 34. cxd3 {[%clk 0:00:51]}  Nxd3 {[%clk 0:00:29]} 35. Rd1 {[%clk 0:00:39]}  Nh7 {[%clk 0:00:20]} 36. Bg3 {[%clk 0:00:33]}  Re8 {[%clk 0:00:17]} 37. Rd2 {[%clk 0:00:28]}  Ng5 {[%clk 0:00:17]} 38. Bd5 {[%clk 0:00:23]}  Ne4 {[%clk 0:00:14]} 39. Re2 {[%clk 0:00:23]}  Ndc5 {[%clk 0:00:09]} 40. Bxc4 {[%clk 0:00:16]}  Rd8 {[%clk 0:00:10]} 41. Bf4 {[%clk 0:00:13]}  Rd1+ {[%clk 0:00:09]} 42. Kh2 {[%clk 0:00:13]}  Rd4 {[%clk 0:00:09]} 43. b3 {[%clk 0:00:11]}  Nf6 {[%clk 0:00:00]} 44. Be3 {[%clk 0:00:11]} 1-0


[Site "https://www.chess.com"]

[Event "Titled Tuesday Blitz July 4 Late 2023"]
[White "Clawitter, Craig"]
[Black "ChawitAp"]
[WhiteFideId "2023105"]
[WhiteElo "2252"]
[BlackElo "2370"]
[Result "0-1"]
[Round "7"]
[TimeControl "180+2"]
[Date "2023.07.04"]
[WhiteClock "0:00:00"]
[BlackClock "0:00:27"]
[Board "122"]

1. e4 {[%clk 0:02:57]}  e5 {[%clk 0:02:59]} 2. Nc3 {[%clk 0:02:57]}  Nf6 {[%clk 0:02:56]} 3. g3 {[%clk 0:02:56]}  Bc5 {[%clk 0:02:55]} 4. Bg2 {[%clk 0:02:56]}  d6 {[%clk 0:02:55]} 5. Nge2 {[%clk 0:02:55]}  h5 {[%clk 0:02:54]} 6. h3 {[%clk 0:02:54]}  Nc6 {[%clk 0:02:53]} 7. d3 {[%clk 0:02:47]}  Nd4 {[%clk 0:02:53]} 8. Nxd4 {[%clk 0:02:41]}  Bxd4 {[%clk 0:02:53]} 9. Ne2 {[%clk 0:02:37]}  Bb6 {[%clk 0:02:53]} 10. Bg5 {[%clk 0:02:28]}  Be6 {[%clk 0:02:51]} 11. O-O {[%clk 0:02:25]}  Qd7 {[%clk 0:02:48]} 12. Kh2 {[%clk 0:02:25]}  O-O-O {[%clk 0:02:37]} 13. a4 {[%clk 0:02:23]}  h4 {[%clk 0:02:32]} 14. gxh4 {[%clk 0:01:47]}  Rdg8 {[%clk 0:02:23]} 15. Ng3 {[%clk 0:01:26]}  Nh7 {[%clk 0:02:05]} 16. f4 {[%clk 0:01:26]}  f6 {[%clk 0:02:03]} 17. f5 {[%clk 0:01:26]}  Bf7 {[%clk 0:01:57]} 18. Bd2 {[%clk 0:01:21]}  Nf8 {[%clk 0:01:52]} 19. a5 {[%clk 0:01:20]}  Bd4 {[%clk 0:01:36]} 20. c3 {[%clk 0:01:17]}  g6 {[%clk 0:01:36]} 21. cxd4 {[%clk 0:01:14]}  Rxh4 {[%clk 0:01:33]} 22. a6 {[%clk 0:01:02]}  b6 {[%clk 0:01:30]} 23. d5 {[%clk 0:00:53]}  Rgh8 {[%clk 0:01:20]} 24. Qa4 {[%clk 0:00:33]}  b5 {[%clk 0:01:18]} 25. Qc2 {[%clk 0:00:27]}  g5 {[%clk 0:01:17]} 26. Qc6 {[%clk 0:00:27]}  Qxc6 {[%clk 0:01:16]} 27. dxc6 {[%clk 0:00:28]}  g4 {[%clk 0:01:15]} 28. Ra5 {[%clk 0:00:20]}  gxh3 {[%clk 0:01:13]} 29. Bf3 {[%clk 0:00:20]}  Be8 {[%clk 0:01:08]} 30. Rc1 {[%clk 0:00:16]}  Nh7 {[%clk 0:00:59]} 31. Rxb5 {[%clk 0:00:16]}  Ng5 {[%clk 0:00:59]} 32. Bxg5 {[%clk 0:00:16]}  fxg5 {[%clk 0:01:00]} 33. Rb7 {[%clk 0:00:15]}  Rf4 {[%clk 0:00:52]} 34. Rf1 {[%clk 0:00:10]}  Bxc6 {[%clk 0:00:44]} 35. Rxa7 {[%clk 0:00:10]}  Kb8 {[%clk 0:00:43]} 36. Rb7+ {[%clk 0:00:10]}  Bxb7 {[%clk 0:00:44]} 37. axb7 {[%clk 0:00:11]}  Kxb7 {[%clk 0:00:45]} 38. Kg1 {[%clk 0:00:07]}  g4 {[%clk 0:00:41]} 39. Be2 {[%clk 0:00:07]}  h2+ {[%clk 0:00:29]} 40. Kg2 {[%clk 0:00:06]}  Rh3 {[%clk 0:00:29]} 41. Rxf4 {[%clk 0:00:05]}  Rxg3+ {[%clk 0:00:28]} 42. Kxh2 {[%clk 0:00:04]}  exf4 {[%clk 0:00:28]} 43. f6 {[%clk 0:00:04]}  Rh3+ {[%clk 0:00:26]} 44. Kg2 {[%clk 0:00:04]}  f3+ {[%clk 0:00:26]} 45. Bxf3 {[%clk 0:00:00]}  Rxf3 {[%clk 0:00:27]} 0-1


[Site "https://www.chess.com"]

[Event "Titled Tuesday Blitz July 4 Late 2023"]
[White "micke12a"]
[Black "Kohler, Aran"]
[BlackFideId "1002856"]
[WhiteElo "2370"]
[BlackElo "2249"]
[Result "1-0"]
[Round "7"]
[TimeControl "180+2"]
[Date "2023.07.04"]
[WhiteClock "0:01:01"]
[BlackClock "0:00:10"]
[Board "123"]

1. d4 {[%clk 0:02:54]}  Nf6 {[%clk 0:02:59]} 2. Nf3 {[%clk 0:02:54]}  b6 {[%clk 0:02:55]} 3. g3 {[%clk 0:02:54]}  Bb7 {[%clk 0:02:55]} 4. Bg2 {[%clk 0:02:54]}  e6 {[%clk 0:02:56]} 5. O-O {[%clk 0:02:55]}  Be7 {[%clk 0:02:56]} 6. c4 {[%clk 0:02:55]}  d5 {[%clk 0:02:55]} 7. Nc3 {[%clk 0:02:55]}  O-O {[%clk 0:02:51]} 8. Qc2 {[%clk 0:02:54]}  c5 {[%clk 0:02:50]} 9. Rd1 {[%clk 0:02:53]}  Na6 {[%clk 0:02:42]} 10. dxc5 {[%clk 0:02:53]}  bxc5 {[%clk 0:02:35]} 11. cxd5 {[%clk 0:02:50]}  exd5 {[%clk 0:02:30]} 12. Ne5 {[%clk 0:02:45]}  Nb4 {[%clk 0:02:15]} 13. Qa4 {[%clk 0:02:37]}  Qd6 {[%clk 0:01:54]} 14. Bf4 {[%clk 0:02:34]}  Qe6 {[%clk 0:01:54]} 15. a3 {[%clk 0:02:30]}  Bc6 {[%clk 0:01:16]} 16. Nxc6 {[%clk 0:01:52]}  Nxc6 {[%clk 0:01:14]} 17. Nxd5 {[%clk 0:01:52]}  Rac8 {[%clk 0:00:59]} 18. Nc7 {[%clk 0:01:31]}  Qxe2 {[%clk 0:00:48]} 19. Qxc6 {[%clk 0:01:26]}  Qxb2 {[%clk 0:00:45]} 20. Qf3 {[%clk 0:01:15]}  c4 {[%clk 0:00:35]} 21. Rab1 {[%clk 0:01:10]}  Qxa3 {[%clk 0:00:34]} 22. Qxa3 {[%clk 0:01:09]}  Bxa3 {[%clk 0:00:35]} 23. Nb5 {[%clk 0:01:08]}  Bc5 {[%clk 0:00:33]} 24. Rdc1 {[%clk 0:01:07]}  Bb6 {[%clk 0:00:33]} 25. Nd6 {[%clk 0:01:07]}  Rcd8 {[%clk 0:00:22]} 26. Nxc4 {[%clk 0:01:06]}  Ng4 {[%clk 0:00:23]} 27. Nxb6 {[%clk 0:01:06]}  axb6 {[%clk 0:00:22]} 28. h3 {[%clk 0:01:06]}  Nf6 {[%clk 0:00:20]} 29. Rxb6 {[%clk 0:01:06]}  Nd5 {[%clk 0:00:20]} 30. Bxd5 {[%clk 0:01:05]}  Rxd5 {[%clk 0:00:21]} 31. Rd6 {[%clk 0:01:05]}  Rb5 {[%clk 0:00:19]} 32. Rcd1 {[%clk 0:01:05]}  h6 {[%clk 0:00:18]} 33. Rd8 {[%clk 0:01:05]}  Rxd8 {[%clk 0:00:17]} 34. Rxd8+ {[%clk 0:01:04]}  Kh7 {[%clk 0:00:17]} 35. Kg2 {[%clk 0:01:04]}  Kg6 {[%clk 0:00:17]} 36. Rd6+ {[%clk 0:01:03]}  f6 {[%clk 0:00:17]} 37. Be3 {[%clk 0:01:04]}  Rb2 {[%clk 0:00:17]} 38. Kf3 {[%clk 0:01:04]}  Ra2 {[%clk 0:00:18]} 39. g4 {[%clk 0:01:04]}  Ra3 {[%clk 0:00:18]} 40. h4 {[%clk 0:01:04]}  Kf7 {[%clk 0:00:17]} 41. h5 {[%clk 0:01:04]}  Ke7 {[%clk 0:00:17]} 42. Rb6 {[%clk 0:01:02]}  Kf7 {[%clk 0:00:17]} 43. Rb5 {[%clk 0:01:00]}  Kg8 {[%clk 0:00:15]} 44. Ke4 {[%clk 0:01:00]}  Kf7 {[%clk 0:00:15]} 45. Kf5 {[%clk 0:01:01]}  Ra4 {[%clk 0:00:15]} 46. Rb7+ {[%clk 0:01:01]}  Kg8 {[%clk 0:00:14]} 47. f3 {[%clk 0:01:01]}  Ra5+ {[%clk 0:00:13]} 48. Kg6 {[%clk 0:01:01]}  Rg5+ {[%clk 0:00:09]} 49. Bxg5 {[%clk 0:01:01]}  fxg5 {[%clk 0:00:10]} 50. Rb8# {[%clk 0:01:01]} 1-0


[Site "https://www.chess.com"]

[Event "Titled Tuesday Blitz July 4 Late 2023"]
[White "Kovacevic, Radmila"]
[Black "Kanyamarala, Trisha"]
[WhiteFideId "933171"]
[BlackFideId "45004722"]
[WhiteElo "2240"]
[BlackElo "2357"]
[Result "0-1"]
[Round "7"]
[TimeControl "180+2"]
[Date "2023.07.04"]
[WhiteClock "0:00:37"]
[BlackClock "0:00:12"]
[Board "124"]

1. e4 {[%clk 0:02:57]}  c5 {[%clk 0:02:59]} 2. Nf3 {[%clk 0:02:56]}  d6 {[%clk 0:02:59]} 3. Bc4 {[%clk 0:02:53]}  e6 {[%clk 0:02:58]} 4. Nc3 {[%clk 0:02:52]}  Nf6 {[%clk 0:02:59]} 5. O-O {[%clk 0:02:47]}  Nc6 {[%clk 0:02:59]} 6. Re1 {[%clk 0:02:45]}  Be7 {[%clk 0:02:59]} 7. d3 {[%clk 0:02:44]}  O-O {[%clk 0:02:59]} 8. e5 {[%clk 0:02:43]}  dxe5 {[%clk 0:02:58]} 9. Nxe5 {[%clk 0:02:42]}  Nxe5 {[%clk 0:02:57]} 10. Rxe5 {[%clk 0:02:43]}  a6 {[%clk 0:02:56]} 11. Be3 {[%clk 0:02:39]}  b5 {[%clk 0:02:56]} 12. Bb3 {[%clk 0:02:37]}  Bd6 {[%clk 0:02:55]} 13. Rg5 {[%clk 0:02:36]}  h6 {[%clk 0:02:55]} 14. Rxc5 {[%clk 0:02:09]}  Bxc5 {[%clk 0:02:53]} 15. Bxc5 {[%clk 0:02:10]}  Re8 {[%clk 0:02:52]} 16. Qf3 {[%clk 0:01:59]}  Rb8 {[%clk 0:02:46]} 17. Ba7 {[%clk 0:01:50]}  Bb7 {[%clk 0:02:44]} 18. Qg3 {[%clk 0:01:41]}  Rc8 {[%clk 0:02:42]} 19. Re1 {[%clk 0:01:40]}  Qc7 {[%clk 0:02:26]} 20. Qh4 {[%clk 0:01:21]}  Bxg2 {[%clk 0:02:17]} 21. Bd4 {[%clk 0:01:20]}  e5 {[%clk 0:02:03]} 22. Be3 {[%clk 0:01:17]}  Bb7 {[%clk 0:01:57]} 23. Bxh6 {[%clk 0:01:17]}  Qc6 {[%clk 0:01:55]} 24. f3 {[%clk 0:00:56]}  gxh6 {[%clk 0:01:33]} 25. Qxh6 {[%clk 0:00:46]}  Qxf3 {[%clk 0:01:09]} 26. Ne4 {[%clk 0:00:45]}  Nxe4 {[%clk 0:00:21]} 27. Qg6+ {[%clk 0:00:44]}  Kf8 {[%clk 0:00:17]} 28. Qh6+ {[%clk 0:00:44]}  Ke7 {[%clk 0:00:17]} 29. dxe4 {[%clk 0:00:37]}  Rg8+ {[%clk 0:00:12]} 0-1


[Site "https://www.chess.com"]

[Event "Titled Tuesday Blitz July 4 Late 2023"]
[White "Seletsky, Grigory"]
[Black "Schachpanda_Youtube"]
[WhiteFideId "14112191"]
[WhiteElo "2352"]
[BlackElo "2223"]
[Result "1/2-1/2"]
[Round "7"]
[TimeControl "180+2"]
[Date "2023.07.04"]
[WhiteClock "0:01:06"]
[BlackClock "0:00:06"]
[Board "125"]

1. d4 {[%clk 0:02:59]}  d5 {[%clk 0:02:59]} 2. c4 {[%clk 0:02:59]}  e6 {[%clk 0:03:00]} 3. Nc3 {[%clk 0:02:59]}  Nf6 {[%clk 0:03:00]} 4. Bg5 {[%clk 0:03:00]}  Be7 {[%clk 0:03:00]} 5. cxd5 {[%clk 0:03:00]}  Nxd5 {[%clk 0:02:59]} 6. Bxe7 {[%clk 0:02:59]}  Qxe7 {[%clk 0:02:59]} 7. e4 {[%clk 0:03:00]}  Nxc3 {[%clk 0:02:59]} 8. bxc3 {[%clk 0:02:59]}  c5 {[%clk 0:03:00]} 9. Nf3 {[%clk 0:03:00]}  O-O {[%clk 0:03:00]} 10. Bd3 {[%clk 0:02:58]}  cxd4 {[%clk 0:02:59]} 11. cxd4 {[%clk 0:02:58]}  Qb4+ {[%clk 0:02:49]} 12. Qd2 {[%clk 0:02:58]}  Qxd2+ {[%clk 0:02:48]} 13. Kxd2 {[%clk 0:02:59]}  b6 {[%clk 0:02:47]} 14. Rhc1 {[%clk 0:02:57]}  Ba6 {[%clk 0:02:46]} 15. a3 {[%clk 0:02:51]}  Bxd3 {[%clk 0:02:38]} 16. Kxd3 {[%clk 0:02:51]}  Na6 {[%clk 0:02:38]} 17. Rc6 {[%clk 0:02:48]}  Rfc8 {[%clk 0:02:32]} 18. Rac1 {[%clk 0:02:48]}  Rxc6 {[%clk 0:02:32]} 19. Rxc6 {[%clk 0:02:48]}  Kf8 {[%clk 0:02:31]} 20. Kc4 {[%clk 0:02:41]}  Ke7 {[%clk 0:02:15]} 21. Kb5 {[%clk 0:02:37]}  Nb8 {[%clk 0:01:53]} 22. Rc7+ {[%clk 0:02:35]}  Ke8 {[%clk 0:01:13]} 23. Ng5 {[%clk 0:02:14]}  Nd7 {[%clk 0:00:50]} 24. Nxf7 {[%clk 0:02:09]}  Kxf7 {[%clk 0:00:48]} 25. Rxd7+ {[%clk 0:02:08]}  Kf6 {[%clk 0:00:46]} 26. Ka6 {[%clk 0:02:06]}  Rc8 {[%clk 0:00:41]} 27. Kxa7 {[%clk 0:01:59]}  Rc3 {[%clk 0:00:40]} 28. Kxb6 {[%clk 0:01:52]}  Rxa3 {[%clk 0:00:40]} 29. e5+ {[%clk 0:01:45]}  Kg6 {[%clk 0:00:37]} 30. Re7 {[%clk 0:01:44]}  Kf5 {[%clk 0:00:15]} 31. Rxg7 {[%clk 0:01:40]}  Ra2 {[%clk 0:00:15]} 32. Rxh7 {[%clk 0:01:35]}  Ke4 {[%clk 0:00:15]} 33. Kc5 {[%clk 0:01:24]}  Rxf2 {[%clk 0:00:09]} 34. Rh6 {[%clk 0:01:19]}  Rc2+ {[%clk 0:00:07]} 35. Kd6 {[%clk 0:01:17]}  Kxd4 {[%clk 0:00:07]} 36. Kxe6 {[%clk 0:01:15]}  Rc6+ {[%clk 0:00:07]} 37. Kd7 {[%clk 0:01:15]}  Rxh6 {[%clk 0:00:07]} 38. e6 {[%clk 0:01:16]}  Rxh2 {[%clk 0:00:04]} 39. e7 {[%clk 0:01:15]}  Rh7 {[%clk 0:00:04]} 40. Ke6 {[%clk 0:01:08]}  Rxe7+ {[%clk 0:00:04]} 41. Kxe7 {[%clk 0:01:07]}  Ke5 {[%clk 0:00:05]} 42. Kf7 {[%clk 0:01:05]}  Kf4 {[%clk 0:00:05]} 43. Kg6 {[%clk 0:01:06]}  Kg3 {[%clk 0:00:05]} 44. Kh5 {[%clk 0:01:06]}  Kxg2 {[%clk 0:00:06]} 1/2-1/2


[Site "https://www.chess.com"]

[Event "Titled Tuesday Blitz July 4 Late 2023"]
[White "Vila Dupla, Aurelio"]
[Black "Zhou, Qiyu"]
[WhiteFideId "2203383"]
[BlackFideId "505161"]
[WhiteElo "2175"]
[BlackElo "2350"]
[Result "0-1"]
[Round "7"]
[TimeControl "180+2"]
[Date "2023.07.04"]
[WhiteClock "0:00:37"]
[BlackClock "0:00:42"]
[Board "126"]

1. Nf3 {[%clk 0:02:56]}  Nf6 {[%clk 0:02:58]} 2. d4 {[%clk 0:02:55]}  d5 {[%clk 0:02:58]} 3. c4 {[%clk 0:02:54]}  e6 {[%clk 0:02:58]} 4. cxd5 {[%clk 0:02:54]}  exd5 {[%clk 0:02:59]} 5. Nc3 {[%clk 0:02:54]}  c6 {[%clk 0:02:54]} 6. Qc2 {[%clk 0:02:54]}  Be7 {[%clk 0:02:54]} 7. Bg5 {[%clk 0:02:54]}  O-O {[%clk 0:02:54]} 8. e3 {[%clk 0:02:54]}  h6 {[%clk 0:02:54]} 9. Bh4 {[%clk 0:02:53]}  Nbd7 {[%clk 0:02:55]} 10. Bd3 {[%clk 0:02:53]}  Re8 {[%clk 0:02:55]} 11. h3 {[%clk 0:02:53]}  Nf8 {[%clk 0:02:55]} 12. O-O-O {[%clk 0:02:48]}  b5 {[%clk 0:02:55]} 13. Kb1 {[%clk 0:02:47]}  a5 {[%clk 0:02:50]} 14. Ne2 {[%clk 0:02:47]}  Qb6 {[%clk 0:02:45]} 15. Rc1 {[%clk 0:02:45]}  Bb7 {[%clk 0:02:42]} 16. Ne5 {[%clk 0:02:42]}  Rec8 {[%clk 0:02:41]} 17. Bf5 {[%clk 0:02:41]}  Rc7 {[%clk 0:02:40]} 18. Nd3 {[%clk 0:02:41]}  Bc8 {[%clk 0:02:33]} 19. g4 {[%clk 0:02:30]}  Bxf5 {[%clk 0:02:26]} 20. gxf5 {[%clk 0:02:29]}  N8d7 {[%clk 0:02:22]} 21. Rhg1 {[%clk 0:02:23]}  Kh8 {[%clk 0:02:22]} 22. Bg3 {[%clk 0:02:09]}  Rcc8 {[%clk 0:02:19]} 23. Nef4 {[%clk 0:02:08]}  Ne4 {[%clk 0:02:06]} 24. Nxd5 {[%clk 0:01:56]}  cxd5 {[%clk 0:02:05]} 25. Qxc8+ {[%clk 0:01:55]}  Rxc8 {[%clk 0:02:06]} 26. Rxc8+ {[%clk 0:01:55]}  Kh7 {[%clk 0:02:06]} 27. Rgc1 {[%clk 0:01:38]}  Nd2+ {[%clk 0:01:35]} 28. Ka1 {[%clk 0:01:36]}  b4 {[%clk 0:01:24]} 29. R8c7 {[%clk 0:01:34]}  Qb5 {[%clk 0:01:22]} 30. Nf4 {[%clk 0:01:15]}  Bd6 {[%clk 0:01:11]} 31. R7c2 {[%clk 0:01:08]}  Ne4 {[%clk 0:01:07]} 32. Bh2 {[%clk 0:01:00]}  b3 {[%clk 0:00:50]} 33. axb3 {[%clk 0:00:50]}  Qxb3 {[%clk 0:00:51]} 34. f3 {[%clk 0:00:50]}  Nef6 {[%clk 0:00:43]} 35. Rc3 {[%clk 0:00:45]}  Qa4+ {[%clk 0:00:42]} 36. Ra3 {[%clk 0:00:37]}  Bxa3 {[%clk 0:00:42]} 0-1


[Site "https://www.chess.com"]

[Event "Titled Tuesday Blitz July 4 Late 2023"]
[White "Vargas, Mauricio"]
[Black "Eggleston, Thomas A"]
[WhiteFideId "4404572"]
[BlackFideId "412139"]
[WhiteElo "1894"]
[BlackElo "2349"]
[Result "0-1"]
[Round "7"]
[TimeControl "180+2"]
[Date "2023.07.04"]
[WhiteClock "0:00:00"]
[BlackClock "0:00:37"]
[Board "127"]

1. e4 {[%clk 0:03:00]}  e6 {[%clk 0:03:00]} 2. f4 {[%clk 0:02:59]}  d5 {[%clk 0:03:00]} 3. e5 {[%clk 0:02:59]}  c5 {[%clk 0:03:00]} 4. Nf3 {[%clk 0:02:59]}  Nc6 {[%clk 0:03:01]} 5. Bb5 {[%clk 0:02:59]}  Bd7 {[%clk 0:03:00]} 6. Bxc6 {[%clk 0:02:59]}  Bxc6 {[%clk 0:02:54]} 7. Nc3 {[%clk 0:03:00]}  d4 {[%clk 0:02:52]} 8. Nb1 {[%clk 0:02:58]}  d3 {[%clk 0:02:51]} 9. Nc3 {[%clk 0:02:56]}  Nh6 {[%clk 0:02:48]} 10. O-O {[%clk 0:02:56]}  c4 {[%clk 0:02:45]} 11. Qe1 {[%clk 0:02:54]}  Bc5+ {[%clk 0:02:44]} 12. Kh1 {[%clk 0:02:51]}  dxc2 {[%clk 0:02:44]} 13. Ne4 {[%clk 0:02:48]}  Bxe4 {[%clk 0:02:37]} 14. Qxe4 {[%clk 0:02:47]}  Qd3 {[%clk 0:02:36]} 15. Qe1 {[%clk 0:02:42]}  O-O {[%clk 0:02:29]} 16. Ng5 {[%clk 0:02:40]}  Rae8 {[%clk 0:02:27]} 17. Rf3 {[%clk 0:02:39]}  Qf5 {[%clk 0:02:19]} 18. Ne4 {[%clk 0:02:28]}  Be7 {[%clk 0:02:10]} 19. h3 {[%clk 0:02:20]}  f6 {[%clk 0:02:08]} 20. g4 {[%clk 0:02:19]}  Qg6 {[%clk 0:02:08]} 21. exf6 {[%clk 0:02:05]}  gxf6 {[%clk 0:02:07]} 22. Rc3 {[%clk 0:01:37]}  f5 {[%clk 0:02:04]} 23. Ng5 {[%clk 0:01:33]}  fxg4 {[%clk 0:01:49]} 24. Qxe6+ {[%clk 0:01:25]}  Kh8 {[%clk 0:01:44]} 25. Qxg6 {[%clk 0:01:07]}  hxg6 {[%clk 0:01:44]} 26. d4 {[%clk 0:01:02]}  Bxg5 {[%clk 0:01:23]} 27. fxg5 {[%clk 0:00:59]}  Re1+ {[%clk 0:01:13]} 28. Kg2 {[%clk 0:00:58]}  gxh3+ {[%clk 0:01:00]} 29. Rxh3 {[%clk 0:00:56]}  Rff1 {[%clk 0:00:40]} 30. Rxh6+ {[%clk 0:00:50]}  Kg7 {[%clk 0:00:40]} 31. Bf4 {[%clk 0:00:09]}  Rxa1 {[%clk 0:00:40]} 32. Be5+ {[%clk 0:00:09]}  Kf7 {[%clk 0:00:40]} 33. Rh7+ {[%clk 0:00:09]}  Ke6 {[%clk 0:00:40]} 34. Rg7 {[%clk 0:00:00]}  c1=Q {[%clk 0:00:37]} 0-1


[Site "https://www.chess.com"]